[Event "Early-Titled-Tuesday-Blitz-September-12-2023"]
[Site "Chess.com"]
[Date "2023.09.12"]
[Round "4"]
[White "Vuk2000"]
[Black "Alphafischer2019"]
[Result "1-0"]
[WhiteElo "2765"]
[BlackElo "2547"]
[TimeControl "180+1"]
[EndTime "8:38:55 PDT"]
[Termination "Vuk2000 won by resignation"]

1. d4 {[%clk 0:03:00.9]} 1... Nf6 {[%clk 0:02:59.1]} 2. Bg5 {[%clk 0:03:01.3]}
2... g6 {[%clk 0:02:55.4]} 3. Bxf6 {[%clk 0:03:01.3]} 3... exf6 {[%clk
0:02:56.3]} 4. c4 {[%clk 0:03:01]} 4... Bg7 {[%clk 0:02:56.2]} 5. Nc3 {[%clk
0:03:01.1]} 5... f5 {[%clk 0:02:56.8]} 6. e3 {[%clk 0:03:00.9]} 6... O-O {[%clk
0:02:56.4]} 7. g3 {[%clk 0:03:00.9]} 7... d6 {[%clk 0:02:55]} 8. Bg2 {[%clk
0:03:00.6]} 8... a5 {[%clk 0:02:55.7]} 9. Nge2 {[%clk 0:03:00.2]} 9... Nd7
{[%clk 0:02:53.8]} 10. O-O {[%clk 0:02:56.4]} 10... Nf6 {[%clk 0:02:53.8]} 11.
Rb1 {[%clk 0:02:55.8]} 11... Re8 {[%clk 0:02:53.8]} 12. Qd3 {[%clk 0:02:55.1]}
12... h5 {[%clk 0:02:52.8]} 13. h4 {[%clk 0:02:54.5]} 13... Ng4 {[%clk
0:02:51.8]} 14. Nf4 {[%clk 0:02:44.7]} 14... g5 {[%clk 0:02:50.4]} 15. hxg5
{[%clk 0:02:43]} 15... Qxg5 {[%clk 0:02:49.9]} 16. Bf3 {[%clk 0:02:32.9]} 16...
h4 {[%clk 0:02:48.3]} 17. Bxg4 {[%clk 0:02:21.7]} 17... fxg4 {[%clk 0:02:32.8]}
18. gxh4 {[%clk 0:01:53.4]} 18... Qxh4 {[%clk 0:02:33.7]} 19. Kg2 {[%clk
0:01:54.1]} 19... Qg5 {[%clk 0:02:22.9]} 20. Kg3 {[%clk 0:01:49.7]} 20... Bh6
{[%clk 0:02:03.6]} 21. Qd2 {[%clk 0:01:22.6]} 21... Bf5 {[%clk 0:02:00.3]} 22.
Rbe1 {[%clk 0:01:22.3]} 22... Be4 {[%clk 0:01:44]} 23. Nxe4 {[%clk 0:00:56.7]}
23... Rxe4 {[%clk 0:01:42.8]} 24. Rh1 {[%clk 0:00:55.8]} 24... Rae8 {[%clk
0:01:40.4]} 25. Rh5 {[%clk 0:00:37.6]} 25... Qf6 {[%clk 0:01:33.3]} 26. Reh1
{[%clk 0:00:26.8]} 26... Bg5 {[%clk 0:00:24.9]} 27. Kxg4 {[%clk 0:00:21.8]}
27... Bxf4 {[%clk 0:00:21.2]} 28. exf4 {[%clk 0:00:20.5]} 28... Kf8 {[%clk
0:00:16.1]} 29. Rf5 {[%clk 0:00:06.1]} 29... Qg6+ {[%clk 0:00:15.9]} 30. Rg5
{[%clk 0:00:06.1]} 30... Qe6+ {[%clk 0:00:16.2]} 31. Kg3 {[%clk 0:00:05.8]}
31... Ke7 {[%clk 0:00:15.4]} 32. d5 {[%clk 0:00:06.1]} 32... Qf6 {[%clk
0:00:15.1]} 33. Qd3 {[%clk 0:00:06.6]} 33... Kd8 {[%clk 0:00:14.3]} 34. Rh7
{[%clk 0:00:05.9]} 34... Qxf4+ {[%clk 0:00:14.7]} 35. Kh3 {[%clk 0:00:04.7]}
35... Re3+ {[%clk 0:00:14.9]} 36. fxe3 {[%clk 0:00:03.5]} 36... Rxe3+ {[%clk
0:00:15.8]} 37. Qxe3 {[%clk 0:00:03.7]} 37... Qxe3+ {[%clk 0:00:16.7]} 38. Rg3
{[%clk 0:00:04.1]} 38... Qf2 {[%clk 0:00:12.9]} 39. Rh8+ {[%clk 0:00:03.5]}
39... Ke7 {[%clk 0:00:13.1]} 40. Rh4 {[%clk 0:00:03.7]} 40... Qf5+ {[%clk
0:00:12.1]} 41. Kg2 {[%clk 0:00:03.3]} 41... Qc2+ {[%clk 0:00:12.3]} 42. Kh3
{[%clk 0:00:03.9]} 42... Qxb2 {[%clk 0:00:12.4]} 43. Re3+ {[%clk 0:00:03.6]}
43... Kf8 {[%clk 0:00:11.6]} 44. Rhe4 {[%clk 0:00:02.4]} 44... Qxa2 {[%clk
0:00:11.8]} 45. Re8+ {[%clk 0:00:02.6]} 45... Kg7 {[%clk 0:00:11.7]} 46. Rg3+
{[%clk 0:00:03.3]} 46... Kf6 {[%clk 0:00:11.6]} 47. Rf3+ {[%clk 0:00:03.8]}
47... Kg6 {[%clk 0:00:12]} 48. Rg8+ {[%clk 0:00:04.1]} 48... Kh7 {[%clk
0:00:12.2]} 49. Rg4 {[%clk 0:00:04.7]} 49... Qxc4 {[%clk 0:00:08.2]} 50. Rxc4
{[%clk 0:00:04.1]} 1-0

[Event "Early-Titled-Tuesday-Blitz-September-12-2023"]
[Site "Chess.com"]
[Date "2023.09.12"]
[Round "4"]
[White "Fandorine"]
[Black "Nf3c5"]
[Result "1-0"]
[WhiteElo "2922"]
[BlackElo "2583"]
[TimeControl "180+1"]
[EndTime "8:38:56 PDT"]
[Termination "Fandorine won on time"]

1. c4 {[%clk 0:03:00.9]} 1... c5 {[%clk 0:02:58.3]} 2. Nf3 {[%clk 0:03:00.8]}
2... Nc6 {[%clk 0:02:54.9]} 3. Nc3 {[%clk 0:03:01.2]} 3... g6 {[%clk 0:02:54.8]}
4. e3 {[%clk 0:03:01.3]} 4... Bg7 {[%clk 0:02:54.1]} 5. d4 {[%clk 0:03:01.8]}
5... Nf6 {[%clk 0:02:50.5]} 6. d5 {[%clk 0:02:54.6]} 6... Na5 {[%clk 0:02:43.3]}
7. d6 {[%clk 0:02:49.9]} 7... O-O {[%clk 0:02:39.8]} 8. Be2 {[%clk 0:02:49.9]}
8... b6 {[%clk 0:02:15.5]} 9. O-O {[%clk 0:02:49.2]} 9... Bb7 {[%clk 0:02:15.8]}
10. a3 {[%clk 0:02:37.3]} 10... Rc8 {[%clk 0:02:11.9]} 11. Rb1 {[%clk
0:02:13.9]} 11... Re8 {[%clk 0:02:07.2]} 12. Nb5 {[%clk 0:02:02.2]} 12... a6
{[%clk 0:01:36.6]} 13. dxe7 {[%clk 0:01:58]} 13... Rxe7 {[%clk 0:01:31.1]} 14.
Nd6 {[%clk 0:01:58.1]} 14... Rb8 {[%clk 0:01:30.6]} 15. b4 {[%clk 0:01:56.3]}
15... cxb4 {[%clk 0:01:29.4]} 16. axb4 {[%clk 0:01:57.2]} 16... Nc6 {[%clk
0:01:29.8]} 17. Nxb7 {[%clk 0:01:56.9]} 17... Rxb7 {[%clk 0:01:29.7]} 18. b5
{[%clk 0:01:55.4]} 18... axb5 {[%clk 0:01:29.4]} 19. cxb5 {[%clk 0:01:52.3]}
19... Ne5 {[%clk 0:01:25.3]} 20. Nxe5 {[%clk 0:01:49]} 20... Rxe5 {[%clk
0:01:25.5]} 21. Bb2 {[%clk 0:01:46]} 21... Re6 {[%clk 0:01:24.4]} 22. Bf3 {[%clk
0:01:43.6]} 22... d5 {[%clk 0:01:18.3]} 23. Bxf6 {[%clk 0:01:37]} 23... Rxf6
{[%clk 0:01:05.8]} 24. Bxd5 {[%clk 0:01:25.8]} 24... Rd7 {[%clk 0:01:05.3]} 25.
e4 {[%clk 0:01:24.6]} 25... Bf8 {[%clk 0:00:56.7]} 26. Ra1 {[%clk 0:01:16.5]}
26... Kg7 {[%clk 0:00:50.9]} 27. g3 {[%clk 0:01:03.7]} 27... Bc5 {[%clk
0:00:47.2]} 28. Kg2 {[%clk 0:01:04]} 28... Qe7 {[%clk 0:00:46.7]} 29. Qc2 {[%clk
0:00:56.9]} 29... Rfd6 {[%clk 0:00:44.7]} 30. Rad1 {[%clk 0:00:50.9]} 30... Ra7
{[%clk 0:00:25.5]} 31. Rfe1 {[%clk 0:00:44.5]} 31... Rdd7 {[%clk 0:00:19.4]} 32.
Qc3+ {[%clk 0:00:37.1]} 32... Qf6 {[%clk 0:00:16.6]} 33. Qc2 {[%clk 0:00:31.4]}
33... Ra3 {[%clk 0:00:13.5]} 34. e5 {[%clk 0:00:28.4]} 34... Qf5 {[%clk
0:00:12.6]} 35. Qxf5 {[%clk 0:00:12.5]} 35... gxf5 {[%clk 0:00:12.8]} 36. f4
{[%clk 0:00:13.2]} 36... Rc3 {[%clk 0:00:10.6]} 37. Bc6 {[%clk 0:00:10.3]} 37...
Ra7 {[%clk 0:00:10.1]} 38. Re2 {[%clk 0:00:10.3]} 38... Raa3 {[%clk 0:00:08.4]}
39. Bd7 {[%clk 0:00:10.2]} 39... Rd3 {[%clk 0:00:08.4]} 40. Rxd3 {[%clk
0:00:10.1]} 40... Rxd3 {[%clk 0:00:09.1]} 41. Bxf5 {[%clk 0:00:10.8]} 41... Rb3
{[%clk 0:00:09.5]} 42. Bd7 {[%clk 0:00:11.2]} 42... h5 {[%clk 0:00:09.3]} 43.
Kh3 {[%clk 0:00:11.2]} 43... Rd3 {[%clk 0:00:05.8]} 44. Bc6 {[%clk 0:00:11.7]}
44... Rd4 {[%clk 0:00:01.9]} 45. Kg2 {[%clk 0:00:12.1]} 45... Kg6 {[%clk
0:00:02.3]} 46. Be4+ {[%clk 0:00:12.4]} 46... Kg7 {[%clk 0:00:02.5]} 47. Bf3
{[%clk 0:00:12.2]} 47... Rb4 {[%clk 0:00:03.4]} 48. Bxh5 {[%clk 0:00:11.3]}
48... Rxb5 {[%clk 0:00:03.8]} 49. f5 {[%clk 0:00:11.7]} 49... Bd4 {[%clk
0:00:03.6]} 50. e6 {[%clk 0:00:09.7]} 50... fxe6 {[%clk 0:00:03.2]} 51. fxe6
{[%clk 0:00:08.7]} 1-0

[Event "Early-Titled-Tuesday-Blitz-September-12-2023"]
[Site "Chess.com"]
[Date "2023.09.12"]
[Round "4"]
[White "wqws"]
[Black "MdImranCM"]
[Result "1-0"]
[WhiteElo "2685"]
[BlackElo "2489"]
[TimeControl "180+1"]
[EndTime "8:38:56 PDT"]
[Termination "wqws won by resignation"]

1. e4 {[%clk 0:03:00.9]} 1... c5 {[%clk 0:02:58.3]} 2. Nf3 {[%clk 0:02:50.5]}
2... Nc6 {[%clk 0:02:58.9]} 3. d4 {[%clk 0:02:50]} 3... cxd4 {[%clk 0:02:59.8]}
4. Nxd4 {[%clk 0:02:50.7]} 4... Qc7 {[%clk 0:03:00.5]} 5. Nc3 {[%clk 0:02:51]}
5... e6 {[%clk 0:03:00.1]} 6. Be3 {[%clk 0:02:51.6]} 6... a6 {[%clk 0:03:00.2]}
7. a3 {[%clk 0:02:52.3]} 7... b5 {[%clk 0:03:00.5]} 8. Nxc6 {[%clk 0:02:52.5]}
8... Qxc6 {[%clk 0:02:06.5]} 9. Bd3 {[%clk 0:02:52.4]} 9... Bb7 {[%clk 0:02:05]}
10. O-O {[%clk 0:02:52.6]} 10... Nf6 {[%clk 0:02:03.8]} 11. Qf3 {[%clk
0:02:37.9]} 11... Bd6 {[%clk 0:02:01.9]} 12. Qh3 {[%clk 0:02:34.7]} 12... h5
{[%clk 0:01:59.2]} 13. f4 {[%clk 0:02:21.4]} 13... Ng4 {[%clk 0:01:53.3]} 14.
Kh1 {[%clk 0:02:10.1]} 14... Nxe3 {[%clk 0:01:49]} 15. Qxe3 {[%clk 0:02:10.1]}
15... Bc5 {[%clk 0:01:45.7]} 16. Qg3 {[%clk 0:02:03.2]} 16... Bd4 {[%clk
0:01:45.4]} 17. Ne2 {[%clk 0:01:41.3]} 17... Bxb2 {[%clk 0:01:43.5]} 18. Rab1
{[%clk 0:01:41.6]} 18... h4 {[%clk 0:01:40.4]} 19. Qg4 {[%clk 0:01:18.7]} 19...
Bf6 {[%clk 0:01:40.2]} 20. h3 {[%clk 0:01:17.5]} 20... d6 {[%clk 0:01:37.1]} 21.
f5 {[%clk 0:00:56.2]} 21... exf5 {[%clk 0:01:27]} 22. Rxf5 {[%clk 0:00:55.6]}
22... Bc8 {[%clk 0:01:24.5]} 23. Rbf1 {[%clk 0:00:47.4]} 23... g6 {[%clk
0:01:19.4]} 24. Rxf6 {[%clk 0:00:43.6]} 24... Bxg4 {[%clk 0:01:16.5]} 25. hxg4
{[%clk 0:00:43.6]} 25... h3 {[%clk 0:01:09.4]} 26. g3 {[%clk 0:00:42.5]} 26...
O-O {[%clk 0:01:06.4]} 27. Nf4 {[%clk 0:00:39.7]} 27... Qe8 {[%clk 0:00:58.4]}
28. Nxh3 {[%clk 0:00:35.7]} 28... Qe5 {[%clk 0:00:56.3]} 29. Kg2 {[%clk
0:00:35]} 29... Kg7 {[%clk 0:00:53.6]} 30. g5 {[%clk 0:00:34.7]} 30... Ra7
{[%clk 0:00:50.4]} 31. R1f4 {[%clk 0:00:32.9]} 31... Rh8 {[%clk 0:00:47.1]} 32.
Rg4 {[%clk 0:00:30.2]} 32... d5 {[%clk 0:00:43.1]} 33. Nf2 {[%clk 0:00:26.8]}
33... d4 {[%clk 0:00:37.6]} 34. Rf3 {[%clk 0:00:22.8]} 34... Rc7 {[%clk
0:00:35]} 35. Nh3 {[%clk 0:00:20.7]} 35... Qe6 {[%clk 0:00:29.7]} 36. Rff4
{[%clk 0:00:18.5]} 36... Rc3 {[%clk 0:00:28.2]} 37. Nf2 {[%clk 0:00:18.3]} 37...
Rxa3 {[%clk 0:00:28]} 38. Rf6 {[%clk 0:00:18.1]} 38... Qe5 {[%clk 0:00:27]} 39.
Rgf4 {[%clk 0:00:18.6]} 39... Rf8 {[%clk 0:00:26.4]} 40. Ng4 {[%clk 0:00:16.1]}
40... Qxg5 {[%clk 0:00:26]} 41. e5 {[%clk 0:00:16.7]} 41... Rxd3 {[%clk
0:00:15.9]} 42. cxd3 {[%clk 0:00:16.4]} 42... b4 {[%clk 0:00:12.4]} 43. e6
{[%clk 0:00:16.8]} 43... Qd5+ {[%clk 0:00:12.9]} 44. Kg1 {[%clk 0:00:15.2]}
44... b3 {[%clk 0:00:13.2]} 45. Rxf7+ {[%clk 0:00:15.3]} 45... Rxf7 {[%clk
0:00:13.4]} 46. Rxf7+ {[%clk 0:00:16.2]} 46... Kh8 {[%clk 0:00:13.9]} 47. Nf6
{[%clk 0:00:15.5]} 1-0

[Event "Early-Titled-Tuesday-Blitz-September-12-2023"]
[Site "Chess.com"]
[Date "2023.09.12"]
[Round "4"]
[White "Gentlejimmy7"]
[Black "BahadirOzen"]
[Result "1/2-1/2"]
[WhiteElo "2569"]
[BlackElo "2788"]
[TimeControl "180+1"]
[EndTime "8:38:58 PDT"]
[Termination "Game drawn - insufficient material"]

1. c4 {[%clk 0:03:00.9]} 1... c6 {[%clk 0:02:51]} 2. Nc3 {[%clk 0:02:53]} 2...
d5 {[%clk 0:02:50.7]} 3. Nf3 {[%clk 0:02:35.6]} 3... d4 {[%clk 0:02:28.6]} 4.
Nb1 {[%clk 0:02:33.8]} 4... Nf6 {[%clk 0:02:25.2]} 5. e3 {[%clk 0:02:32.9]} 5...
c5 {[%clk 0:02:23]} 6. exd4 {[%clk 0:02:32.8]} 6... cxd4 {[%clk 0:02:23.9]} 7.
d3 {[%clk 0:02:33.4]} 7... Nc6 {[%clk 0:02:18.1]} 8. g3 {[%clk 0:02:33.7]} 8...
e5 {[%clk 0:02:16.1]} 9. Bg2 {[%clk 0:02:34.1]} 9... Bb4+ {[%clk 0:02:16.7]} 10.
Nbd2 {[%clk 0:02:31.4]} 10... a5 {[%clk 0:02:09.3]} 11. O-O {[%clk 0:02:31.4]}
11... O-O {[%clk 0:02:09.4]} 12. a3 {[%clk 0:02:31.4]} 12... Bd6 {[%clk
0:02:03.4]} 13. Re1 {[%clk 0:02:31.1]} 13... Re8 {[%clk 0:01:55.6]} 14. Ng5
{[%clk 0:02:30.1]} 14... Bg4 {[%clk 0:01:51.4]} 15. Qc2 {[%clk 0:02:28.4]} 15...
Rc8 {[%clk 0:01:46.7]} 16. Nde4 {[%clk 0:02:28]} 16... Nxe4 {[%clk 0:01:45.7]}
17. Nxe4 {[%clk 0:02:28.9]} 17... Bf8 {[%clk 0:01:43]} 18. h3 {[%clk 0:02:16.9]}
18... Bd7 {[%clk 0:01:40]} 19. c5 {[%clk 0:02:14.4]} 19... Be6 {[%clk
0:01:35.8]} 20. Qa4 {[%clk 0:02:02.4]} 20... h6 {[%clk 0:01:31]} 21. b4 {[%clk
0:01:55.6]} 21... axb4 {[%clk 0:01:26.1]} 22. axb4 {[%clk 0:01:56.5]} 22... Ra8
{[%clk 0:01:19.7]} 23. Qxa8 {[%clk 0:01:54.9]} 23... Qxa8 {[%clk 0:01:20.6]} 24.
Rxa8 {[%clk 0:01:54.4]} 24... Rxa8 {[%clk 0:01:21.5]} 25. Bd2 {[%clk 0:01:48.7]}
25... Ra2 {[%clk 0:00:51.8]} 26. b5 {[%clk 0:01:45.9]} 26... Na5 {[%clk
0:00:52.1]} 27. Bxa5 {[%clk 0:01:33.8]} 27... Rxa5 {[%clk 0:00:53]} 28. c6
{[%clk 0:01:34.7]} 28... bxc6 {[%clk 0:00:53.1]} 29. bxc6 {[%clk 0:01:35.6]}
29... f5 {[%clk 0:00:48.4]} 30. Nd2 {[%clk 0:01:23.4]} 30... Bb4 {[%clk
0:00:46.4]} 31. Re2 {[%clk 0:01:01.4]} 31... e4 {[%clk 0:00:29.6]} 32. c7 {[%clk
0:00:53.9]} 32... Rc5 {[%clk 0:00:25.9]} 33. dxe4 {[%clk 0:00:32.2]} 33... d3
{[%clk 0:00:21.3]} 34. Re3 {[%clk 0:00:32.6]} 34... Bxd2 {[%clk 0:00:22]} 35.
Rxd3 {[%clk 0:00:32.5]} 35... Rc1+ {[%clk 0:00:20.1]} 36. Kh2 {[%clk 0:00:31.9]}
36... Ba5 {[%clk 0:00:20.8]} 37. exf5 {[%clk 0:00:21.6]} 37... Bxf5 {[%clk
0:00:20.4]} 38. Rd5 {[%clk 0:00:22.2]} 38... Be6 {[%clk 0:00:15.7]} 39. Rxa5
{[%clk 0:00:20.6]} 39... Rxc7 {[%clk 0:00:16.3]} 40. Bd5 {[%clk 0:00:20.8]}
40... Bxd5 {[%clk 0:00:16.4]} 41. Rxd5 {[%clk 0:00:21.7]} 41... Rc2 {[%clk
0:00:16.7]} 42. Kg2 {[%clk 0:00:22.1]} 42... Kf7 {[%clk 0:00:17.2]} 43. h4
{[%clk 0:00:21.7]} 43... Rc3 {[%clk 0:00:15.9]} 44. Ra5 {[%clk 0:00:22]} 44...
Rb3 {[%clk 0:00:15.5]} 45. g4 {[%clk 0:00:22]} 45... Rc3 {[%clk 0:00:15.5]} 46.
f3 {[%clk 0:00:22.3]} 46... Rc1 {[%clk 0:00:15.5]} 47. Kg3 {[%clk 0:00:22.7]}
47... Rh1 {[%clk 0:00:16.1]} 48. g5 {[%clk 0:00:18.7]} 48... hxg5 {[%clk
0:00:16.1]} 49. hxg5 {[%clk 0:00:19.6]} 49... Kg6 {[%clk 0:00:16]} 50. Kg4
{[%clk 0:00:17.7]} 50... Rg1+ {[%clk 0:00:16.3]} 51. Kf4 {[%clk 0:00:17.9]}
51... Kh5 {[%clk 0:00:10.3]} 52. Ra2 {[%clk 0:00:16.4]} 52... Rxg5 {[%clk
0:00:09]} 53. Rh2+ {[%clk 0:00:14.8]} 53... Kg6 {[%clk 0:00:09.6]} 54. Ra2
{[%clk 0:00:14.7]} 54... Rf5+ {[%clk 0:00:09.9]} 55. Kg3 {[%clk 0:00:14.7]}
55... Rb5 {[%clk 0:00:10.8]} 56. Ra4 {[%clk 0:00:14]} 56... Kf6 {[%clk
0:00:10.4]} 57. Rf4+ {[%clk 0:00:13.5]} 57... Rf5 {[%clk 0:00:11.1]} 58. Rxf5+
{[%clk 0:00:13.5]} 58... Kxf5 {[%clk 0:00:12]} 59. f4 {[%clk 0:00:14]} 59... g6
{[%clk 0:00:12.5]} 60. Kf3 {[%clk 0:00:14.3]} 60... g5 {[%clk 0:00:13.1]} 61.
fxg5 {[%clk 0:00:14.3]} 61... Kxg5 {[%clk 0:00:14]} 1/2-1/2

[Event "Early-Titled-Tuesday-Blitz-September-12-2023"]
[Site "Chess.com"]
[Date "2023.09.12"]
[Round "4"]
[White "Ducke13"]
[Black "parintele_chess"]
[Result "0-1"]
[WhiteElo "2467"]
[BlackElo "2255"]
[TimeControl "180+1"]
[EndTime "8:39:00 PDT"]
[Termination "parintele_chess won on time"]

1. d4 {[%clk 0:02:48.4]} 1... Nf6 {[%clk 0:02:55.6]} 2. g3 {[%clk 0:02:47]} 2...
d5 {[%clk 0:02:53.5]} 3. Nf3 {[%clk 0:02:46.5]} 3... g6 {[%clk 0:02:53]} 4. c4
{[%clk 0:02:46.3]} 4... c6 {[%clk 0:02:52.9]} 5. Bg2 {[%clk 0:02:46.4]} 5... Bg7
{[%clk 0:02:53.3]} 6. cxd5 {[%clk 0:02:47.1]} 6... cxd5 {[%clk 0:02:53.3]} 7.
Nc3 {[%clk 0:02:47.8]} 7... Ne4 {[%clk 0:02:52.7]} 8. O-O {[%clk 0:01:54.1]}
8... O-O {[%clk 0:02:50.9]} 9. Nxe4 {[%clk 0:01:49.7]} 9... dxe4 {[%clk
0:02:51.8]} 10. Ne5 {[%clk 0:01:50.2]} 10... Nd7 {[%clk 0:02:22.5]} 11. Nc4
{[%clk 0:01:30.1]} 11... Nb6 {[%clk 0:02:09.6]} 12. Nxb6 {[%clk 0:01:25.5]}
12... Qxb6 {[%clk 0:02:10.5]} 13. e3 {[%clk 0:01:25.5]} 13... f5 {[%clk
0:02:07.8]} 14. Qb3+ {[%clk 0:01:21.8]} 14... Be6 {[%clk 0:02:02.7]} 15. Qxb6
{[%clk 0:01:20.4]} 15... axb6 {[%clk 0:02:01.7]} 16. a3 {[%clk 0:01:12.4]} 16...
Bc4 {[%clk 0:01:43.3]} 17. Re1 {[%clk 0:01:11.1]} 17... Rfc8 {[%clk 0:01:42.3]}
18. Bd2 {[%clk 0:01:10.3]} 18... e5 {[%clk 0:01:38.9]} 19. Bc3 {[%clk
0:00:30.8]} 19... exd4 {[%clk 0:01:36.2]} 20. exd4 {[%clk 0:00:27]} 20... Rd8
{[%clk 0:01:33.6]} 21. Rad1 {[%clk 0:00:24.4]} 21... Rac8 {[%clk 0:01:12.1]} 22.
f3 {[%clk 0:00:20.4]} 22... Bb3 {[%clk 0:01:02.4]} 23. fxe4 {[%clk 0:00:20.2]}
23... Bxd1 {[%clk 0:01:01.3]} 24. Rxd1 {[%clk 0:00:21.1]} 24... fxe4 {[%clk
0:00:50.8]} 25. Bxe4 {[%clk 0:00:22]} 25... Rc4 {[%clk 0:00:44.9]} 26. Bb1
{[%clk 0:00:03.9]} 26... Bxd4+ {[%clk 0:00:40.5]} 27. Kg2 {[%clk 0:00:03]} 27...
Kg7 {[%clk 0:00:18.5]} 28. Ba2 {[%clk 0:00:02.9]} 28... Ra4 {[%clk 0:00:15.9]}
29. Bb3 {[%clk 0:00:02.6]} 29... Bxc3 {[%clk 0:00:08.3]} 30. Rxd8 {[%clk
0:00:02.6]} 30... Rd4 {[%clk 0:00:05.9]} 31. Rc8 {[%clk 0:00:01.5]} 31... Bxb2
{[%clk 0:00:05.7]} 32. Rc7+ {[%clk 0:00:01.9]} 32... Kh6 {[%clk 0:00:05.7]} 33.
Rxb7 {[%clk 0:00:02.3]} 33... Bxa3 {[%clk 0:00:05.4]} 34. Bg8 {[%clk 0:00:01.8]}
34... Rd2+ {[%clk 0:00:05.9]} 35. Kh3 {[%clk 0:00:01.9]} 35... Kg5 {[%clk
0:00:06.8]} 36. Rxh7 {[%clk 0:00:02.1]} 36... Bc5 {[%clk 0:00:07]} 37. Rb7
{[%clk 0:00:02.3]} 37... Bg1 {[%clk 0:00:07.9]} 38. g4 {[%clk 0:00:01.7]} 38...
Rxh2+ {[%clk 0:00:07.9]} 39. Kg3 {[%clk 0:00:02.4]} 39... Rd2 {[%clk 0:00:08.6]}
40. Kf3 {[%clk 0:00:02.9]} 40... Rd3+ {[%clk 0:00:09]} 41. Ke4 {[%clk
0:00:03.3]} 41... Re3+ {[%clk 0:00:09.2]} 42. Kd5 {[%clk 0:00:03.1]} 42... Rb3
{[%clk 0:00:10.1]} 43. Be6 {[%clk 0:00:03.2]} 43... Rb5+ {[%clk 0:00:09.7]} 44.
Kd6 {[%clk 0:00:03.5]} 44... Bh2+ {[%clk 0:00:09.1]} 45. Kd7 {[%clk 0:00:03.3]}
45... Bg1 {[%clk 0:00:09]} 46. Kc6 {[%clk 0:00:03.1]} 46... Rb4 {[%clk
0:00:09.3]} 47. Bd7 {[%clk 0:00:03.6]} 47... Rxg4 {[%clk 0:00:08.3]} 48. Bxg4
{[%clk 0:00:01.7]} 48... Kxg4 {[%clk 0:00:09.2]} 49. Rg7 {[%clk 0:00:01.7]}
49... g5 {[%clk 0:00:09.5]} 50. Kd5 {[%clk 0:00:01.8]} 50... Kf4 {[%clk
0:00:08.6]} 51. Rf7+ {[%clk 0:00:01.9]} 51... Kg3 {[%clk 0:00:09.1]} 52. Ke4
{[%clk 0:00:02.6]} 52... Bc5 {[%clk 0:00:08.1]} 0-1

[Event "Early-Titled-Tuesday-Blitz-September-12-2023"]
[Site "Chess.com"]
[Date "2023.09.12"]
[Round "4"]
[White "RodTwinkz"]
[Black "Orest_Vovk"]
[Result "0-1"]
[WhiteElo "2691"]
[BlackElo "2544"]
[TimeControl "180+1"]
[EndTime "8:39:03 PDT"]
[Termination "Orest_Vovk won by checkmate"]

1. e4 {[%clk 0:03:00.9]} 1... g5 {[%clk 0:02:43.5]} 2. d4 {[%clk 0:02:55.3]}
2... g4 {[%clk 0:02:43.2]} 3. h3 {[%clk 0:02:48.4]} 3... d5 {[%clk 0:02:41.7]}
4. e5 {[%clk 0:02:43.1]} 4... gxh3 {[%clk 0:02:34.2]} 5. Nxh3 {[%clk 0:02:42.2]}
5... c5 {[%clk 0:02:30.1]} 6. Ng5 {[%clk 0:02:31.7]} 6... Bf5 {[%clk 0:02:23.2]}
7. Bd3 {[%clk 0:02:22.6]} 7... Bxd3 {[%clk 0:02:22.4]} 8. Qxd3 {[%clk
0:02:19.7]} 8... Bh6 {[%clk 0:02:11.7]} 9. e6 {[%clk 0:02:14.1]} 9... Bxg5
{[%clk 0:01:53.1]} 10. exf7+ {[%clk 0:02:11.8]} 10... Kxf7 {[%clk 0:01:54]} 11.
Rxh7+ {[%clk 0:02:02.6]} 11... Rxh7 {[%clk 0:01:54.9]} 12. Qxh7+ {[%clk
0:02:02.8]} 12... Ke6 {[%clk 0:01:44.8]} 13. Bxg5 {[%clk 0:01:59.6]} 13... cxd4
{[%clk 0:01:41.2]} 14. Nd2 {[%clk 0:01:56.4]} 14... Nc6 {[%clk 0:01:39.1]} 15.
O-O-O {[%clk 0:01:54]} 15... Nf6 {[%clk 0:01:30.5]} 16. Bxf6 {[%clk 0:01:52.8]}
16... exf6 {[%clk 0:01:27.9]} 17. Nb3 {[%clk 0:01:33.4]} 17... Kd6 {[%clk
0:00:51.3]} 18. Nxd4 {[%clk 0:00:54.2]} 18... Nxd4 {[%clk 0:00:48.4]} 19. Rxd4
{[%clk 0:00:55.1]} 19... Qh8 {[%clk 0:00:33.5]} 20. Qxb7 {[%clk 0:00:47.2]}
20... Qh6+ {[%clk 0:00:32]} 21. Kd1 {[%clk 0:00:40.1]} 21... Qh5+ {[%clk
0:00:31.5]} 22. Kd2 {[%clk 0:00:33.8]} 22... Qg5+ {[%clk 0:00:26.5]} 23. Kc3
{[%clk 0:00:28.1]} 23... Rd8 {[%clk 0:00:20.8]} 24. Kb3 {[%clk 0:00:21.1]} 24...
Ke6 {[%clk 0:00:14.5]} 25. Rd3 {[%clk 0:00:16]} 25... d4 {[%clk 0:00:12]} 26.
Qxa7 {[%clk 0:00:10.4]} 26... Qd5+ {[%clk 0:00:10.3]} 27. Kb4 {[%clk 0:00:06.8]}
27... Qd6+ {[%clk 0:00:09.8]} 28. Ka4 {[%clk 0:00:02]} 28... Qc6+ {[%clk
0:00:08.5]} 29. Kb3 {[%clk 0:00:02.5]} 29... Qd5+ {[%clk 0:00:06.1]} 30. Kb4
{[%clk 0:00:02.5]} 30... Qd6+ {[%clk 0:00:06.3]} 31. Kc4 {[%clk 0:00:02.9]}
31... Rc8+ {[%clk 0:00:06.1]} 32. Kb3 {[%clk 0:00:03.3]} 32... Qd5+ {[%clk
0:00:06.1]} 33. Ka3 {[%clk 0:00:03.6]} 33... Ra8 {[%clk 0:00:03.3]} 34. Qxa8
{[%clk 0:00:04]} 34... Qxa8+ {[%clk 0:00:03.9]} 35. Kb3 {[%clk 0:00:04.9]} 35...
Qd5+ {[%clk 0:00:04.4]} 36. Kb4 {[%clk 0:00:05.5]} 36... Ke5 {[%clk 0:00:04.8]}
37. b3 {[%clk 0:00:05.7]} 37... Qb7+ {[%clk 0:00:05]} 38. Kc4 {[%clk 0:00:06.1]}
38... Qc6+ {[%clk 0:00:05.3]} 39. Kb4 {[%clk 0:00:07]} 39... Qxc2 {[%clk
0:00:05.7]} 40. Rf3 {[%clk 0:00:07.4]} 40... Qd2+ {[%clk 0:00:05.5]} 41. Kc4
{[%clk 0:00:07.2]} 41... Qc2+ {[%clk 0:00:05.5]} 42. Kb4 {[%clk 0:00:07.4]}
42... d3 {[%clk 0:00:06.1]} 43. Re3+ {[%clk 0:00:07.4]} 43... Kd6 {[%clk
0:00:06.5]} 44. Re4 {[%clk 0:00:06.1]} 44... d2 {[%clk 0:00:06.2]} 45. Rd4+
{[%clk 0:00:06.6]} 45... Ke7 {[%clk 0:00:06]} 46. a4 {[%clk 0:00:06.3]} 46...
d1=Q {[%clk 0:00:05.8]} 47. Rxd1 {[%clk 0:00:07.2]} 47... Qxd1 {[%clk
0:00:06.3]} 48. a5 {[%clk 0:00:07.7]} 48... Qd2+ {[%clk 0:00:06.7]} 49. Ka4
{[%clk 0:00:07.8]} 49... Qxf2 {[%clk 0:00:07.6]} 50. b4 {[%clk 0:00:08.2]} 50...
Qxg2 {[%clk 0:00:08.5]} 51. b5 {[%clk 0:00:08.6]} 51... Kd6 {[%clk 0:00:08.6]}
52. Kb4 {[%clk 0:00:08.1]} 52... Qb2+ {[%clk 0:00:07.9]} 53. Ka4 {[%clk
0:00:08.5]} 53... Kc5 {[%clk 0:00:07.6]} 54. b6 {[%clk 0:00:09.1]} 54... Qb4#
{[%clk 0:00:07.6]} 0-1